fUSD/lending_fUSD_20240114
["ID","MTS","AMOUNT","RATE_DAILY","PERIOD"]
[311619838,1705265524196,-867.3,0.00032876,2]
[311619839,1705265524206,-500.0,0.00032876,2]
[311619840,1705265524216,-500.0,0.00032876,2]
[311619841,1705265524225,-500.0,0.00032876,2]
[311619842,1705265524234,-581.81,0.00032876,2]
[311619843,1705265524243,-624.05,0.00032876,2]
[311619844,1705265524253,-830.39,0.00032876,2]
[311619845,1705265524263,-500.0,0.00032876,2]
[311619846,1705265524272,-379.9269039,0.00032876,2]
[311619847,1705265524282,-677.4,0.00032876,2]
[311619848,1705265524292,-1100.99,0.00032876,2]
[311619849,1705265524301,-525.17,0.00032876,2]
[311619850,1705265524311,-500.0,0.00032876,2]
[311619851,1705265524321,-500.0,0.00032876,2]
[311619852,1705265524330,-586.11,0.00032876,2]
[311619853,1705265524340,-500.0,0.00032876,2]
[311619854,1705265524350,-500.0,0.00032876,2]
[311619855,1705265524360,-1229.11,0.00032876,2]
[311619856,1705265524369,-1106.76,0.00032876,2]
[311619857,1705265524379,-500.0,0.00032876,2]
[311619858,1705265524389,-500.0,0.00032876,2]
[311619859,1705265524399,-500.0,0.00032876,2]
[311619860,1705265524409,-894.93,0.00032876,2]
[311619861,1705265524419,-608.9,0.00032876,2]
[311619862,1705265524428,-500.0,0.00032876,2]
[311619863,1705265524438,-946.64,0.00032876,2]
[311619864,1705265524447,-500.0,0.00032876,2]
[311619865,1705265524457,-619.49,0.00032876,2]
[311619866,1705265524466,-500.0,0.00032876,2]
[311619867,1705265524476,-868.77,0.00032876,2]
[311619868,1705265524486,-500.0,0.00032876,2]
[311619869,1705265524496,-500.0,0.00032876,2]
[311619870,1705265524506,-500.0,0.00032876,2]
[311619871,1705265524516,-578.25,0.00032876,2]
[311619872,1705265524526,-500.0,0.00032876,2]
[311619873,1705265524536,-500.0,0.00032876,2]
[311619874,1705265524545,-500.0,0.00032876,2]
[311619875,1705265524555,-500.0,0.00032876,2]
[311619876,1705265524564,-532.95,0.00032876,2]
[311619877,1705265524574,-1204.84,0.00032876,2]
[311619878,1705265524583,-500.0,0.00032876,2]
[311619879,1705265524594,-500.0,0.00032876,2]
[311619880,1705265524607,-500.0,0.00032876,2]
[311619881,1705265524616,-545.29,0.00032876,2]
[311619882,1705265524626,-500.0,0.00032876,2]
[311619883,1705265524642,-670.63,0.00032876,2]
[311619884,1705265524652,-233.96956422,0.00032876,2]
[311619885,1705265524663,-523.04,0.00032876,2]
[311619886,1705265524678,-500.0,0.00032876,2]
[311619887,1705265524687,-500.0,0.00032876,2]
[311619888,1705265524698,-500.0,0.00032876,2]
[311619889,1705265524709,-636.75,0.00032876,2]
[311619890,1705265524719,-500.0,0.00032876,2]
[311619891,1705265524730,-596.02,0.00032876,2]
[311619892,1705265524743,-1015.13,0.00032876,2]
[311619893,1705265524755,-500.0,0.00032876,2]
[311619894,1705265524764,-1744.35,0.00032876,2]
[311619895,1705265524784,-851.16,0.00032876,2]
[311619896,1705265524795,-536.9,0.00032876,2]
[311619897,1705265524805,-846.45,0.00032876,2]
[311619898,1705265524815,-500.0,0.00032876,2]
[311619899,1705265524826,-500.0,0.00032876,2]
[311619900,1705265524837,-607.07,0.00032876,2]
[311619901,1705265524847,-500.0,0.00032876,2]
[311619902,1705265524856,-1022.21,0.00032876,2]
[311619903,1705265524866,-797.3,0.00032876,2]
[311619904,1705265524877,-500.0,0.00032876,2]
[311619905,1705265524888,-560.52,0.00032876,2]
[311619906,1705265524899,-1056.73,0.00032876,2]
[311619907,1705265524911,-546.08,0.00032876,2]
[311619908,1705265524922,-1547.25,0.00032876,2]
[311619909,1705265524931,-715.62,0.00032876,2]
[311619910,1705265524944,-500.0,0.00032876,2]
[311619911,1705265524955,-900.1,0.00032876,2]
[311619912,1705265524965,-500.0,0.00032876,2]
[311619913,1705265524976,-500.0,0.00032876,2]
[311619914,1705265524986,-1245.22,0.00032876,2]
[311619915,1705265524997,-500.0,0.00032876,2]
[311619916,1705265525007,-2718.67,0.00032876,2]
[311619917,1705265525017,-500.0,0.00032876,2]
[311619918,1705265525027,-679.75,0.00032876,2]
[311619919,1705265525037,-1251.06,0.00032876,2]
[311619920,1705265525047,-650.18,0.00032876,2]
[311619921,1705265525057,-282.96,0.00032876,2]
[311619922,1705265525067,-500.0,0.00032876,2]
[311619923,1705265525077,-500.0,0.00032876,2]
[311619924,1705265525088,-983.25,0.00032876,2]
[311619925,1705265525098,-2249.92,0.00032876,2]
[311619926,1705265525108,-500.0,0.00032876,2]
[311619927,1705265525118,-595.82,0.00032876,2]
[311619928,1705265525128,-500.0,0.00032876,2]
[311619929,1705265525138,-500.0,0.00032876,2]
[311619930,1705265525148,-500.0,0.00032876,2]
[311619931,1705265525158,-1879.49,0.00032876,2]
[311619932,1705265525169,-979.35,0.00032876,2]
[311619933,1705265525179,-500.0,0.00032876,2]
[311619934,1705265525189,-629.35,0.00032876,2]
[311619935,1705265525199,-645.75,0.00032876,2]
[311619936,1705265525210,-689.93,0.00032876,2]
[311619937,1705265525220,-905.95,0.00032876,2]
[311619938,1705265525230,-669.74,0.00032876,2]
[311619939,1705265525241,-658.52,0.00032876,2]
[311619940,1705265525251,-500.0,0.00032876,2]
[311619941,1705265525261,-500.0,0.00032876,2]
[311619942,1705265525271,-500.0,0.00032876,2]
[311619943,1705265525282,-1000.92,0.00032876,2]
[311619944,1705265525292,-584.45,0.00032876,2]
[311619945,1705265525302,-500.0,0.00032876,2]
[311619946,1705265525313,-500.0,0.00032876,2]
[311619947,1705265525322,-500.0,0.00032876,2]
[311619948,1705265525332,-500.0,0.00032876,2]
[311619949,1705265525343,-578.47318859,0.00032876,2]
[311619950,1705265525353,-596.4,0.00032876,2]
[311619951,1705265525363,-646.38,0.00032876,2]
[311619952,1705265525374,-675.0,0.00032876,2]
[311619953,1705265525384,-500.0,0.00032876,2]
[311619954,1705265525395,-886.22,0.00032876,2]
[311619955,1705265525406,-679.48,0.00032876,2]
[311619956,1705265525417,-698.99,0.00032876,2]
[311619957,1705265525428,-567.27,0.00032876,2]
[311619958,1705265525438,-1207.58,0.00032876,2]
[311619959,1705265525448,-692.03,0.00032876,2]
[311619960,1705265525459,-4337.15,0.00032876,2]
[311619961,1705265525469,-1455.02,0.00032876,2]
[311619962,1705265525479,-718.79,0.00032876,2]
[311619963,1705265525489,-852.88,0.00032876,2]
[311619964,1705265525499,-500.0,0.00032876,2]
[311619965,1705265525509,-500.0,0.00032876,2]
[311619966,1705265525519,-902.9,0.00032876,2]
[311619967,1705265525529,-500.0,0.00032876,2]
[311619968,1705265525539,-500.0,0.00032876,2]
[311619969,1705265525549,-500.0,0.00032876,5]
[311619970,1705265525560,-500.0,0.00032876,2]
[311619971,1705265525570,-746.49,0.00032876,2]
[311619972,1705265525581,-541.15,0.00032876,2]
[311619973,1705265525591,-500.0,0.00032876,2]
[311619974,1705265525601,-500.0,0.00032876,2]
[311619975,1705265525612,-727.08,0.00032876,2]
[311619976,1705265525622,-7127.94,0.00032876,2]
[311619977,1705265525633,-918.26,0.00032876,2]
[311619978,1705265525643,-2334.97,0.00032876,2]
[311619979,1705265525654,-571.94,0.00032876,2]
[311619980,1705265525664,-520.99,0.00032876,2]
[311619981,1705265525674,-500.0,0.00032876,2]
[311619982,1705265525683,-1278.08,0.00032876,2]
[311619983,1705265525693,-500.0,0.00032876,2]
[311619984,1705265525704,-1335.19,0.00032876,2]
[311619985,1705265525713,-500.0,0.00032876,2]
[311619986,1705265525723,-507.96,0.00032876,2]
[311619987,1705265525733,-2191.12,0.00032876,2]
[311619988,1705265525747,-682.65,0.00032876,2]
[311619989,1705265525757,-1823.86,0.00032876,2]
[311619990,1705265525767,-651.64,0.00032876,2]
[311619991,1705265525776,-566.33,0.00032876,2]
[311619992,1705265525785,-602.37,0.00032876,2]
[311619993,1705265525795,-883.91,0.00032876,2]
[311619994,1705265525805,-500.0,0.00032876,2]
[311619995,1705265525815,-14316.0,0.00032876,2]
[311619996,1705265525825,-2214.32,0.00032876,2]
[311619997,1705265525834,-1750.64,0.00032876,2]
[311619998,1705265525843,-875.93,0.00032876,2]
[311619999,1705265525852,-500.0,0.00032876,2]
[311620000,1705265525863,-596.16,0.00032876,2]
[311620001,1705265525873,-846.65,0.00032876,2]
[311620002,1705265525883,-1849.03,0.00032876,2]
[311620003,1705265525893,-753.89,0.00032876,2]
[311620004,1705265525903,-500.0,0.00032876,2]
[311620005,1705265525913,-1112.66,0.00032876,2]
[311620006,1705265525922,-1725.14,0.00032876,2]
[311620007,1705265525932,-796.33,0.00032876,2]
[311620008,1705265525943,-9.18552123,0.00032876,2]
[311620009,1705265526457,-490.81447877,0.00032876,2]
[311620010,1705265526466,-808.86,0.00032876,2]
[311620011,1705265526477,-899.24,0.00032876,2]
[311620012,1705265526486,-1429.98,0.00032876,2]
[311620013,1705265526497,-500.0,0.00032876,2]
[311620014,1705265526507,-500.0,0.00032876,2]
[311620015,1705265526517,-524.71,0.00032876,2]
[311620016,1705265526526,-500.0,0.00032876,2]
[311620017,1705265526537,-1713.52,0.00032876,2]
[311620018,1705265526547,-1102.84,0.00032876,2]
[311620019,1705265526557,-1116.72,0.00032876,2]
[311620020,1705265526566,-1618.96,0.00032876,2]
[311620021,1705265526576,-2696.94,0.00032876,2]
[311620022,1705265526586,-500.0,0.00032876,2]
[311620023,1705265526596,-794.76,0.00032876,2]
[311620024,1705265526606,-500.0,0.00032876,2]
[311620025,1705265526616,-500.0,0.00032876,2]
[311620026,1705265526625,-724.53,0.00032876,2]
[311620027,1705265526635,-737.29,0.00032876,2]
[311620028,1705265526645,-1597.13,0.00032876,2]
[311620029,1705265526656,-622.57,0.00032876,2]
[311620030,1705265526666,-500.0,0.00032876,2]
[311620031,1705265526675,-1009.68,0.00032876,2]
[311620032,1705265526685,-640.35,0.00032876,2]
[311620033,1705265526694,-500.0,0.00032876,2]
[311620034,1705265526704,-500.0,0.00032876,2]
[311620035,1705265526714,-500.0,0.00032876,2]
[311620036,1705265526724,-1595.29,0.00032876,2]
[311620037,1705265526733,-500.0,0.00032876,2]
[311620038,1705265526744,-917.26,0.00032876,2]
[311620039,1705265526755,-565.13,0.00032876,2]
[311620040,1705265526764,-4300.16,0.00032876,2]
[311620041,1705265526774,-2100.41,0.00032876,2]
[311620042,1705265526784,-1007.56,0.00032876,2]
[311620043,1705265526793,-776.73,0.00032876,2]
[311620044,1705265526803,-500.0,0.00032876,2]
[311620045,1705265526812,-5057.58,0.00032876,2]
[311620046,1705265526821,-933.45,0.00032876,2]
[311620047,1705265526832,-500.0,0.00032876,2]
[311620048,1705265526842,-531.05,0.00032876,2]
[311620049,1705265526852,-500.0,0.00032876,2]
[311620050,1705265526862,-1593.77,0.00032876,2]
[311620051,1705265526871,-720.02,0.00032876,2]
[311620052,1705265526880,-500.0,0.00032876,5]
[311620053,1705265526889,-500.0,0.00032876,2]
[311620054,1705265526899,-500.0,0.00032876,2]
[311620055,1705265526909,-1573.4,0.00032876,2]
[311620056,1705265526919,-4742.8,0.00032876,2]
[311620057,1705265526928,-500.0,0.00032876,2]
[311620058,1705265526938,-332.22,0.00032876,2]
[311620059,1705265526948,-500.0,0.00032876,2]
[311620060,1705265526957,-3392.17,0.00032876,2]
[311620061,1705265526966,-881.88,0.00032876,2]
[311620062,1705265526976,-3302.73,0.00032876,2]
[311620063,1705265526985,-1145.63,0.00032876,2]
[311620064,1705265526995,-755.87,0.00032876,2]
[311620065,1705265527004,-500.0,0.00032876,2]
[311620066,1705265527014,-500.0,0.00032876,2]
[311620067,1705265527023,-3349.66,0.00032876,2]
[311620068,1705265527033,-911.19,0.00032876,2]
[311620069,1705265527042,-699.61,0.00032876,2]
[311620070,1705265527052,-500.0,0.00032876,2]
[311620071,1705265527061,-9373.54,0.00032876,2]
[311620072,1705265527070,-1446.11,0.00032876,2]
[311620073,1705265527079,-563.79,0.00032876,2]
[311620074,1705265527089,-516.51337053,0.00032876,2]
[311620075,1705265527098,-1392.74,0.00032876,2]
[311620076,1705265527107,-580.88,0.00032876,2]
[311620077,1705265527117,-500.0,0.00032876,2]
[311620078,1705265527126,-9954.34,0.00032876,2]
[311620079,1705265527135,-1674.87,0.00032876,2]
[311620080,1705265527145,-2675.53,0.00032876,2]
[311620081,1705265527154,-638.69,0.00032876,2]
[311620082,1705265527164,-1402.19,0.00032876,2]
[311620083,1705265527173,-609.69,0.00032876,2]
[311620084,1705265527182,-500.0,0.00032876,2]
[311620085,1705265527191,-5600.69,0.00032876,2]
[311620086,1705265527201,-541.21,0.00032876,2]
[311620087,1705265527210,-500.0,0.00032876,2]
[311620088,1705265527220,-830.84,0.00032876,2]
[311620089,1705265527229,-2246.95,0.00032876,2]
[311620090,1705265527238,-924.51,0.00032876,2]
[311620091,1705265527249,-3335.08,0.00032876,2]
[311620092,1705265527259,-10595.33,0.00032876,2]
[311620093,1705265527268,-500.0,0.00032876,2]
[311620094,1705265527277,-836.16,0.00032876,2]
[311620095,1705265527286,-500.0,0.00032876,2]
[311620096,1705265527296,-500.0,0.00032876,2]
[311620097,1705265527305,-646.01,0.00032876,2]
[311620098,1705265527315,-500.0,0.00032876,2]
[311620099,1705265527324,-500.0,0.00032876,2]
[311620100,1705265527334,-500.0,0.00032876,2]
[311620101,1705265527343,-500.0,0.00032876,2]
[311620102,1705265527352,-500.0,0.00032876,2]
[311620103,1705265527361,-329.67081892,0.00032876,2]
[311620104,1705265527371,-3225.32,0.00032876,2]
[311620105,1705265527381,-1637.96,0.00032876,2]
[311620106,1705265527390,-500.0,0.00032876,2]
[311620107,1705265527399,-500.0,0.00032876,2]
[311620108,1705265527408,-3401.5,0.00032876,2]
[311620109,1705265527418,-699.52,0.00032876,2]
[311620110,1705265527427,-630.68499017,0.00032876,2]
[311620111,1705265527436,-1658.41,0.00032876,2]
[311620112,1705265527446,-500.0,0.00032876,2]
[311620113,1705265527455,-898.47,0.00032876,2]
[311620114,1705265527465,-747.38,0.00032876,2]
[311620115,1705265527474,-502.0,0.00032876,2]
[311620116,1705265527483,-3294.26,0.00032876,2]
[311620117,1705265527493,-781.12,0.00032876,2]
[311620118,1705265527502,-2934.21,0.00032876,2]
[311620119,1705265527511,-28330.08,0.00032876,2]
[311620120,1705265527521,-1324.02,0.00032876,2]
[311620121,1705265527530,-1385.96,0.00032876,2]
[311620122,1705265527539,-915.45,0.00032876,2]
[311620123,1705265527548,-509.43,0.00032876,2]
[311620124,1705265527558,-500.0,0.00032876,2]
[311620125,1705265527567,-2258.81,0.00032876,2]
[311620126,1705265527576,-993.95,0.00032876,2]
[311620127,1705265527585,-500.0,0.00032876,2]
[311620128,1705265527595,-630.07,0.00032876,2]
[311620129,1705265527604,-500.0,0.00032876,2]
[311620130,1705265527614,-500.0,0.00032876,2]
[311620131,1705265527623,-663.38,0.00032876,2]
[311620132,1705265527632,-534.75,0.00032876,2]
[311620133,1705265527642,-7238.69,0.00032876,2]
[311620134,1705265527651,-2077.72,0.00032876,2]
[311620135,1705265527660,-500.0,0.00032876,2]
[311620136,1705265527669,-1376.21,0.00032876,2]
[311620137,1705265527679,-1332.9,0.00032876,2]
[311620138,1705265527687,-1108.32,0.00032876,2]
[311620139,1705265527697,-560.24,0.00032876,2]
[311620140,1705265527706,-477.48886733,0.00032876,2]
[311620141,1705265527717,-691.92,0.00032876,2]
[311620142,1705265527726,-500.0,0.00032876,2]
[311620143,1705265527736,-644.63,0.00032876,2]
[311620144,1705265527745,-917.54,0.00032876,2]
[311620145,1705265527754,-500.0,0.00032876,2]
[311620146,1705265527763,-4169.87,0.00032876,2]
[311620147,1705265527772,-503.48,0.00032876,2]
[311620148,1705265527782,-810.05,0.00032876,2]
[311620149,1705265527791,-799.56,0.00032876,2]
[311620150,1705265527800,-500.0,0.00032876,2]
[311620151,1705265527809,-907.45,0.00032876,2]
[311620152,1705265527819,-500.0,0.00032876,2]
[311620153,1705265527828,-767.29,0.00032876,2]
[311620154,1705265527838,-733.07,0.00032876,2]
[311620155,1705265527847,-500.0,0.00032876,2]
[311620156,1705265527856,-304.76083693,0.00032876,2]
[311620157,1705265527865,-6057.77,0.00032876,2]
[311620158,1705265527875,-1447.4,0.00032876,2]
[311620159,1705265527885,-1557.23,0.00032876,2]
[311620160,1705265527894,-1520.88,0.00032876,2]
[311620161,1705265527904,-500.0,0.00032876,2]
[311620162,1705265527913,-1561.7,0.00032876,2]
[311620163,1705265527922,-500.0,0.00032876,2]
[311620164,1705265527931,-2650.58,0.00032876,2]
[311620165,1705265527939,-16510.87,0.00032876,2]
[311620166,1705265527948,-1302.74,0.00032876,2]
[311620167,1705265527958,-500.0,0.00032876,2]
[311620168,1705265527968,-587.88,0.00032876,2]
[311620169,1705265527977,-3126.96,0.00032876,2]
[311620170,1705265527986,-1648.36,0.00032876,2]
[311620171,1705265527995,-500.0,0.00032876,2]
[311620172,1705265528004,-500.0,0.00032876,2]
[311620173,1705265528014,-1892.55,0.00032876,2]
[311620174,1705265528024,-500.0,0.00032876,2]
[311620175,1705265528034,-3105.59,0.00032876,2]
[311620176,1705265528044,-8950.09,0.00032876,2]
[311620177,1705265528054,-1582.78,0.00032876,2]
[311620178,1705265528063,-500.0,0.00032876,2]
[311620179,1705265528073,-1119.58,0.00032876,2]
[311620180,1705265528083,-810.88,0.00032876,2]
[311620181,1705265528092,-925.46,0.00032876,2]
[311620182,1705265528102,-1362.22,0.00032876,2]
[311620183,1705265528111,-1419.16,0.00032876,2]
[311620184,1705265528121,-840.38,0.00032876,2]
[311620185,1705265528131,-1153.75,0.00032876,2]
[311620186,1705265528140,-500.0,0.00032876,2]
[311620187,1705265528151,-707.1,0.00032876,2]
[311620188,1705265528160,-965.13,0.00032876,2]
[311620189,1705265528170,-500.0,0.00032876,2]
[311620190,1705265528180,-500.0,0.00032876,2]
[311620191,1705265528190,-836.71,0.00032876,2]
[311620192,1705265528200,-736.07,0.00032876,2]
[311620193,1705265528210,-1354.92,0.00032876,2]
[311620194,1705265528219,-190.76195304,0.00032876,2]
[311620195,1705265528229,-622.53,0.00032876,2]
[311620196,1705265528238,-5875.67,0.00032876,2]
[311620197,1705265528248,-784.6,0.00032876,2]
[311620198,1705265528258,-500.0,0.00032876,2]
[311620199,1705265528268,-3535.86,0.00032876,2]
[311620200,1705265528277,-1339.45,0.00032876,2]
[311620201,1705265528288,-726.02,0.00032876,2]
[311620202,1705265528298,-500.0,0.00032876,2]
[311620203,1705265528308,-772.02,0.00032876,2]
[311620204,1705265528318,-2000.77,0.00032876,2]
[311620205,1705265528328,-4196.76,0.00032876,2]
[311620206,1705265528338,-385.28257444,0.00032876,2]
[311620207,1705265528350,-874.57,0.00032876,2]
[311620208,1705265528360,-1070.23,0.00032876,2]
[311620209,1705265528369,-563.09,0.00032876,2]
[311620210,1705265528378,-803.67,0.00032876,2]
[311620211,1705265528388,-500.0,0.00032876,2]
[311620212,1705265528398,-869.2,0.00032876,2]
[311620213,1705265528407,-500.0,0.00032876,2]
[311620214,1705265528417,-581.19,0.00032876,2]
[311620215,1705265528427,-599.72543805,0.00032876,2]
[311620216,1705265528437,-633.03,0.00032876,2]
[311620217,1705265528446,-205.52263868,0.00032876,2]
[311620218,1705265528457,-969.9,0.00032876,2]
[311620219,1705265528466,-2946.84,0.00032876,2]
[311620220,1705265528476,-711.01,0.00032876,2]
[311620221,1705265528485,-1464.74,0.00032876,2]
[311620222,1705265528495,-552.27,0.00032876,2]
[311620223,1705265528505,-500.0,0.00032876,2]
[311620224,1705265528515,-1928.32,0.00032876,2]
[311620225,1705265528525,-1643.12,0.00032876,2]
[311620226,1705265528535,-1109.23,0.00032876,2]
[311620227,1705265528544,-1980.27,0.00032876,2]
[311620228,1705265528554,-1413.08,0.00032876,2]
[311620229,1705265528564,-503.28,0.00032876,2]
[311620230,1705265528573,-500.0,0.00032876,2]
[311620231,1705265528582,-500.0,0.00032876,2]
[311620232,1705265528592,-500.0,0.00032876,2]
[311620233,1705265528602,-532.18,0.00032876,2]
[311620234,1705265528612,-1886.92,0.00032876,2]
[311620235,1705265528621,-560.65,0.00032876,2]
[311620236,1705265528631,-710.77,0.00032876,2]
[311620237,1705265528640,-500.0,0.00032876,2]
[311620238,1705265528649,-610.95,0.00032876,2]
[311620239,1705265528661,-848.62,0.00032876,2]
[311620240,1705265528671,-4590.19,0.00032876,2]
[311620241,1705265528680,-567.58,0.00032876,2]
[311620242,1705265528691,-500.0,0.00032876,2]
[311620243,1705265528700,-153.84,0.00032877,2]
[311620244,1705265528710,-150.1,0.00032877,2]
[311620245,1705265528720,-150.0,0.00032877,2]
[311620246,1705265528729,-18974.59,0.00032877,2]
[311620247,1705265528739,-621.19,0.00032877,15]
[311620248,1705265528757,-150.0,0.00032877,2]
[311620249,1705265528768,-150.0,0.00032877,2]
[311620250,1705265528778,-1403.261193,0.00032877,2]
[311620251,1705265528788,-1403.261193,0.00032877,2]
[311620252,1705265528798,-1403.261193,0.00032877,2]
[311620253,1705265528808,-1403.261193,0.00032877,2]
[311620254,1705265528818,-1403.261193,0.00032877,2]
[311620255,1705265528829,-1403.261193,0.00032877,2]
[311620256,1705265528839,-1403.261193,0.00032877,2]
[311620257,1705265528850,-1403.261193,0.00032877,2]
[311620258,1705265528860,-1403.261193,0.00032877,2]
[311620259,1705265528870,-1403.261193,0.00032877,2]
[311620260,1705265528879,-1403.261193,0.00032877,2]
[311620261,1705265528890,-1403.261193,0.00032877,2]
[311620262,1705265528899,-1403.261193,0.00032877,2]
[311620263,1705265528910,-1403.261193,0.00032877,2]
[311620264,1705265528920,-1403.261193,0.00032877,2]
[311620265,1705265528930,-1403.261193,0.00032877,2]
[311620266,1705265528939,-1403.261193,0.00032877,2]
[311620267,1705265528949,-1403.261193,0.00032877,2]
[311620268,1705265528959,-1403.261193,0.00032877,2]
[311620269,1705265528969,-1403.261193,0.00032877,2]
[311620270,1705265528978,-1403.261193,0.00032877,2]
[311620271,1705265528988,-1403.261193,0.00032877,2]
[311620272,1705265528998,-1403.261193,0.00032877,2]
[311620273,1705265529007,-1403.261193,0.00032877,2]
[311620274,1705265529017,-1403.261195,0.00032877,2]
[311620275,1705265529026,-182.94,0.0003288,2]
[311620276,1705265529036,-1000.0,0.000329,2]
[311620277,1705265529046,-500.0,0.00032987,3]
[311620278,1705265529056,-465.75689909,0.00032999,2]
[311620279,1705265529066,-490.37589765,0.00032999,2]
[311620280,1705265529076,-500.0,0.00032999,2]
[311620281,1705265529085,-450.69373784,0.00032999,2]
[311620282,1705265529095,-314.89454372,0.00032999,2]
[311620283,1705265529105,-550.0,0.00033,3]
[311620284,1705265529115,-150.14,0.00033,2]
[311620285,1705265529125,-150.14,0.00033,2]
[311620286,1705265529134,-150.14,0.00033,2]
[311620287,1705265529144,-150.14,0.00033,2]
[311620288,1705265529155,-150.14,0.00033,2]
[311620289,1705265529164,-150.14,0.00033,2]
[311620290,1705265529174,-150.14,0.00033,2]
[311620291,1705265529184,-150.14,0.00033,2]
[311620292,1705265529194,-150.14,0.00033,2]
[311620293,1705265529204,-150.14,0.00033,2]
[311620294,1705265529214,-150.14,0.00033,2]
[311620295,1705265529225,-150.14,0.00033,2]
[311620296,1705265529235,-150.14,0.00033,2]
[311620297,1705265529245,-150.14,0.00033,2]
[311620298,1705265529255,-150.14,0.00033,2]
[311620299,1705265529264,-150.14,0.00033,2]
[311620300,1705265529274,-150.14,0.00033,2]
[311620301,1705265529283,-150.14,0.00033,2]
[311620302,1705265529293,-150.14,0.00033,2]
[311620303,1705265529303,-150.14,0.00033,2]
[311620304,1705265529312,-150.14,0.00033,2]
[311620305,1705265529323,-150.14,0.00033,2]
[311620306,1705265529333,-150.14,0.00033,2]
[311620307,1705265529343,-150.14,0.00033,2]
[311620308,1705265529353,-150.14,0.00033,2]
[311620309,1705265529363,-150.14,0.00033,2]
[311620310,1705265529373,-150.14,0.00033,2]
[311620311,1705265529383,-150.14,0.00033,2]
[311620312,1705265529393,-150.14,0.00033,2]
[311620313,1705265529402,-150.14,0.00033,2]
[311620314,1705265529412,-150.14,0.00033,2]
[311620315,1705265529422,-150.14,0.00033,2]
[311620316,1705265529432,-150.14,0.00033,2]
[311620317,1705265529442,-150.14,0.00033,2]
[311620318,1705265529453,-150.14,0.00033,2]
[311620319,1705265529463,-150.14,0.00033,2]
[311620320,1705265529473,-150.14,0.00033,2]
[311620321,1705265529483,-150.14,0.00033,2]
[311620322,1705265529493,-150.14,0.00033,2]
[311620323,1705265529503,-150.14,0.00033,2]
[311620324,1705265529513,-150.14,0.00033,2]
[311620325,1705265529523,-150.14,0.00033,2]
[311620326,1705265529534,-150.14,0.00033,2]
[311620327,1705265529544,-150.14,0.00033,2]
[311620328,1705265529554,-929.47,0.00033032,2]
[311620329,1705265529564,-492.04,0.00033059,2]
[311620330,1705265529574,-150.0,0.00033071,2]
[311620331,1705265529583,-813.9,0.00033139,2]
[311620332,1705265529593,-1993.60653099,0.00033147,2]
[311620333,1705265529604,-500.0,0.0003315,2]
[311620334,1705265529614,-500.0,0.0003315,2]
[311620335,1705265529623,-324.27249485,0.0003315,2]
[311620336,1705265529633,-500.0,0.0003315,2]
[311620337,1705265529643,-500.0,0.0003315,2]